fUSD/lending_fUSD_20250806
["ID","MTS","AMOUNT","RATE_DAILY","PERIOD"]
[377608505,1754453432167,-1089.18,0.00030464,2]
[377608507,1754453432176,-1918.72,0.00030468,2]
[377608509,1754453432186,-1918.72,0.00030484,2]
[377608510,1754453432197,-1918.72,0.000305,2]
[377608511,1754453432207,-1918.72,0.00030516,2]
[377608512,1754453432218,-1918.72,0.00030532,2]
[377608513,1754453432227,-1918.72,0.00030548,2]
[377608514,1754453432237,-2412.69,0.00030551,2]
[377608515,1754453432247,-1918.72,0.00030564,2]
[377608516,1754453432260,-1000.0,0.0003057,2]
[377608517,1754453432271,-1918.72,0.0003058,2]
[377608518,1754453432281,-1918.72,0.00030596,2]
[377608519,1754453432292,-336.98,0.00030597,2]
[377608520,1754453432302,-2751.0,0.00030597,120]
[377608521,1754453432312,-1918.72,0.00030612,2]
[377608522,1754453432323,-152.93,0.00030616,2]
[377608523,1754453432334,-150.0,0.00030616,2]
[377608524,1754453432344,-1918.72,0.00030628,2]
[377608525,1754453432356,-175.0,0.00030634,7]
[377608526,1754453432366,-1918.72,0.00030644,2]
[377608527,1754453432375,-151.0,0.0003088,3]
[377608528,1754453432386,-405.41806654,0.00031075,2]
[377608529,1754453432396,-332.64,0.00031094,2]
[377608530,1754453432406,-562.42,0.000312,2]
[377608531,1754453432416,-167.48,0.00031574,2]
[377608532,1754453432426,-23900.0,0.00031644,2]
[377608533,1754453432435,-336.98,0.00031744,2]
[377608534,1754453432445,-721.16281403,0.00031802,2]
[377608535,1754453432454,-250.0,0.00032031,2]
[377608536,1754453432463,-300.0,0.00032053,55]
[377608537,1754453432472,-819.16,0.00032113,2]
[377608538,1754453432481,-956.72,0.00032226,2]
[377608539,1754453432491,-150.0,0.0003228,2]
[377608540,1754453432500,-975.915,0.00032286,32]
[377608541,1754453432509,-276.66,0.00032289,2]
[377608542,1754453432519,-173.49,0.00032476,2]
[377608543,1754453432528,-150.0,0.00032523,4]
[377608544,1754453432537,-150.0,0.00032523,4]
[377608545,1754453432546,-150.0,0.00032523,4]
[377608546,1754453432555,-150.0,0.00032523,4]
[377608547,1754453432564,-150.0,0.00032523,4]
[377608548,1754453432573,-150.0,0.00032523,4]
[377608549,1754453432583,-150.0,0.00032523,4]
[377608550,1754453432592,-150.0,0.00032523,4]
[377608551,1754453432601,-150.0,0.00032523,4]
[377608552,1754453432610,-150.0,0.00032523,4]
[377608553,1754453432618,-150.55739567,0.00032523,4]
[377608554,1754453432627,-151.0,0.00032543,4]
[377608555,1754453432637,-200.0,0.00032705,2]
[377608556,1754453432646,-192.44,0.00032726,2]
[377608557,1754453432655,-332.64,0.00032825,2]
[377608558,1754453432664,-542.2,0.00032874,2]
[377608559,1754453432673,-336.98,0.00032891,2]
[377608560,1754453432683,-299.99,0.00033038,30]
[377608561,1754453432692,-999.99,0.00033038,2]
[377608562,1754453432702,-9999.99,0.00033038,2]
[377608563,1754453432712,-546.38,0.00033038,20]
[377608564,1754453432721,-9999.99,0.00033038,2]
[377608565,1754453432731,-150.99,0.00033038,2]
[377608566,1754453432740,-853.56,0.00033038,2]
[377608567,1754453432749,-159.29,0.00033038,2]
[377608568,1754453432759,-9999.99,0.00033038,2]
[377608569,1754453432770,-1096.681,0.00033254,2]
[377608570,1754453432779,-892.0,0.00033254,2]
[377608571,1754453432789,-1170.0,0.00033254,2]
[377608572,1754453432798,-379.0,0.000338,2]
[377608573,1754453432807,-775.0,0.000338,2]
[377608574,1754453432816,-240.0,0.000338,2]
[377608575,1754453432826,-500.0,0.00033843,7]
[377608576,1754453432835,-500.0,0.00033843,7]
[377608577,1754453432845,-500.0,0.00033843,7]
[377608578,1754453432854,-500.0,0.00033843,7]
[377608579,1754453432863,-500.0,0.00033843,7]
[377608580,1754453432872,-413.43820956,0.00033843,7]
[377608581,1754453432895,-86.56179044,0.00033843,7]
[377608582,1754453432904,-500.0,0.00033843,7]
[377608583,1754453432914,-500.0,0.00033843,7]
[377608584,1754453432923,-500.0,0.00033843,7]
[377608585,1754453432932,-500.0,0.00033843,7]
[377608586,1754453432941,-500.0,0.00033843,7]
[377608587,1754453432951,-90.35933884,0.00033843,7]
[377608588,1754453432962,-409.64066116,0.00033843,7]
[377608589,1754453432971,-500.0,0.00033843,7]
[377608590,1754453432982,-500.0,0.00033843,7]
[377608591,1754453432992,-500.0,0.00033843,7]
[377608592,1754453433002,-500.0,0.00033843,7]
[377608593,1754453433011,-500.0,0.00033843,7]
[377608594,1754453433021,-500.0,0.00033843,7]
[377608595,1754453433031,-500.0,0.00033843,7]
[377608596,1754453433041,-500.0,0.00033843,7]
[377608597,1754453433050,-500.0,0.00033843,7]
[377608598,1754453433059,-500.0,0.00033843,7]
[377608599,1754453433069,-500.0,0.00033843,7]
[377608600,1754453433079,-500.0,0.00033843,7]
[377608601,1754453433088,-500.0,0.00033843,7]
[377608602,1754453433098,-500.0,0.00033843,7]
[377608603,1754453433108,-500.0,0.00033843,7]
[377608604,1754453433118,-500.0,0.00033843,7]
[377608605,1754453433129,-500.0,0.00033843,7]
[377608606,1754453433138,-500.0,0.00033843,7]
[377608607,1754453433148,-500.0,0.00033843,7]
[377608608,1754453433158,-500.0,0.00033843,7]
[377608609,1754453433168,-500.0,0.00033843,7]
[377608610,1754453433177,-500.0,0.00033843,7]
[377608611,1754453433188,-500.0,0.00033843,7]
[377608612,1754453433197,-500.0,0.00033843,7]
[377608613,1754453433207,-500.0,0.00033843,7]
[377608614,1754453433216,-500.0,0.00033843,7]
[377608615,1754453433226,-500.0,0.00033843,7]
[377608616,1754453433236,-500.0,0.00033843,7]
[377608617,1754453433246,-500.0,0.00033843,7]
[377608618,1754453433261,-500.0,0.00033843,7]
[377608619,1754453433271,-500.0,0.00033843,7]
[377608620,1754453433280,-595.65427415,0.00033843,7]
[377608621,1754453433291,-500.0,0.00033843,7]
[377608622,1754453433300,-500.0,0.00033843,7]
[377608623,1754453433310,-500.0,0.00033843,7]
[377608624,1754453433320,-500.0,0.00033843,7]
[377608625,1754453433331,-500.0,0.00033843,7]
[377608626,1754453433341,-500.0,0.00033843,7]
[377608627,1754453433351,-500.0,0.00033843,7]
[377608628,1754453433361,-500.0,0.00033843,7]
[377608629,1754453433371,-500.0,0.00033843,7]
[377608630,1754453433380,-500.0,0.00033843,7]
[377608631,1754453433390,-500.0,0.00033843,7]
[377608632,1754453433400,-500.0,0.00033843,7]
[377608633,1754453433409,-500.0,0.00033843,7]
[377608634,1754453433419,-500.0,0.00033843,7]
[377608635,1754453433428,-500.0,0.00033843,7]
[377608636,1754453433438,-500.0,0.00033843,7]
[377608637,1754453433448,-500.0,0.00033843,7]
[377608638,1754453433458,-500.0,0.00033843,7]
[377608639,1754453433468,-211.52696026,0.00033843,7]
[377608640,1754453433478,-457.43778519,0.00033843,7]
[377608641,1754453433488,-842.03384774,0.00033843,7]
[377608642,1754453433497,-513.0,0.00033972,2]
[377608643,1754453433507,-150.0,0.00034031,2]
[377608644,1754453433518,-150.0,0.00034031,2]
[377608645,1754453433527,-150.0,0.00034031,2]
[377608646,1754453433536,-203.862,0.00034031,2]
[377608647,1754453433546,-336.98,0.00034039,2]
[377608648,1754453433556,-150.0,0.00034058,2]
[377608649,1754453433566,-150.0,0.00034086,2]
[377608650,1754453433576,-150.0,0.00034086,2]
[377608651,1754453433586,-941.569,0.00034086,2]
[377608652,1754453433595,-1252.0,0.00034086,2]
[377608653,1754453433605,-3362.0,0.00034086,2]
[377608654,1754453433614,-809.0,0.00034086,2]
[377608655,1754453433624,-564.0,0.00034086,2]
[377608656,1754453433633,-597.0,0.00034086,2]
[377608657,1754453433643,-2024.0,0.00034086,2]
[377608658,1754453433653,-958.0,0.00034086,2]
[377608659,1754453433662,-1293.0,0.00034086,2]
[377608660,1754453433672,-151.0,0.00034206,5]
[377608661,1754453433682,-150.0,0.0003433,7]
[377608662,1754453433691,-150.0,0.0003433,7]
[377608663,1754453433700,-150.0,0.0003433,7]
[377608664,1754453433710,-1000.0,0.00034391,2]
[377608665,1754453433720,-332.64,0.00034555,2]
[377608666,1754453433730,-173.49,0.00034641,2]
[377608667,1754453433739,-845.01572123,0.00034775,2]
[377608668,1754453433749,-845.01572123,0.00034832,2]
[377608669,1754453433759,-2500.0,0.000349,2]
[377608670,1754453433769,-160.20728402,0.00035,2]
[377608671,1754453433779,-25580.16,0.00035,30]
[377608672,1754453433789,-457.43778519,0.00035,30]
[377608673,1754453433799,-845.01572123,0.00035173,2]
[377608674,1754453433808,-336.98,0.00035186,2]
[377608675,1754453433817,-1000.0,0.000355,120]
[377608676,1754453433827,-513.0,0.00035503,5]
[377608677,1754453433836,-5000.0,0.00035506,2]
[377608678,1754453433846,-157.32201809,0.00035516,2]
[377608679,1754453433855,-263.78641324,0.00035516,2]
[377608680,1754453433864,-155.37397305,0.00035516,15]
[377608681,1754453433874,-845.01572123,0.00035567,2]
[377608682,1754453433883,-1000.0,0.00035599,2]
[377608683,1754453433893,-388.86,0.00035615,2]
[377608684,1754453433902,-120890.14648581,0.00035616,2]
[377608685,1754453433912,-404.72,0.00035616,14]
[377608686,1754453433922,-400.0,0.00035616,14]
[377608687,1754453433931,-400.0,0.00035616,14]
[377608688,1754453433941,-400.0,0.00035616,14]
[377608689,1754453433951,-400.0,0.00035616,14]
[377608690,1754453433960,-318.18155703,0.00035616,14]
[377608691,1754453433970,-400.0,0.00035616,14]
[377608692,1754453433980,-400.0,0.00035616,14]
[377608693,1754453433989,-400.0,0.00035616,14]
[377608694,1754453433999,-400.0,0.00035616,14]
[377608695,1754453434008,-400.0,0.00035616,14]
[377608696,1754453434017,-2500.0,0.00035616,14]
[377608697,1754453434027,-400.0,0.00035616,14]
[377608698,1754453434037,-1769.65,0.00035616,14]
[377608699,1754453434047,-203.83347808,0.00035616,14]
[377608700,1754453434057,-400.0,0.00035616,14]
[377608701,1754453434066,-400.0,0.00035616,14]
[377608702,1754453434077,-400.0,0.00035616,14]
[377608703,1754453434086,-400.0,0.00035616,14]
[377608704,1754453434096,-919.38,0.00035616,14]
[377608705,1754453434106,-400.0,0.00035616,14]
[377608706,1754453434115,-1134.73,0.00035616,14]
[377608707,1754453434125,-400.0,0.00035616,14]
[377608708,1754453434135,-408.46,0.00035616,14]
[377608709,1754453434146,-400.0,0.00035616,14]
[377608710,1754453434156,-919.88,0.00035616,14]
[377608711,1754453434165,-1008.7,0.00035616,14]
[377608712,1754453434175,-400.0,0.00035616,14]
[377608713,1754453434185,-400.0,0.00035616,14]
[377608714,1754453434195,-400.0,0.00035616,14]
[377608715,1754453434204,-400.0,0.00035616,14]
[377608716,1754453434214,-982.72,0.00035616,14]
[377608717,1754453434224,-400.0,0.00035616,14]
[377608718,1754453434233,-400.0,0.00035616,14]
[377608719,1754453434243,-401.03729954,0.00035616,14]
[377608720,1754453434255,-400.0,0.00035616,14]
[377608721,1754453434264,-400.0,0.00035616,14]
[377608722,1754453434274,-400.0,0.00035616,14]
[377608723,1754453434283,-1710.63,0.00035616,14]
[377608724,1754453434294,-400.0,0.00035616,14]
[377608725,1754453434304,-400.0,0.00035616,14]
[377608726,1754453434313,-400.0,0.00035616,14]
[377608727,1754453434323,-878.18,0.00035616,14]
[377608728,1754453434335,-401.13876388,0.00035616,14]
[377608729,1754453434344,-400.0,0.00035616,14]
[377608730,1754453434354,-708.07,0.00035616,14]
[377608731,1754453434363,-400.0,0.00035616,14]
[377608732,1754453434373,-1058.23,0.00035616,14]
[377608733,1754453434383,-1202.32,0.00035616,14]
[377608734,1754453434393,-434.06,0.00035616,14]
[377608735,1754453434404,-400.0,0.00035616,14]
[377608736,1754453434416,-698.34,0.00035616,14]
[377608737,1754453434426,-400.0,0.00035616,14]
[377608738,1754453434437,-400.0,0.00035616,14]
[377608739,1754453434447,-400.0,0.00035616,14]
[377608740,1754453434456,-546.46,0.00035616,14]
[377608741,1754453434466,-2035.02,0.00035616,14]
[377608742,1754453434475,-400.0,0.00035616,14]
[377608743,1754453434595,-400.0,0.00035616,14]
[377608744,1754453434604,-483.27,0.00035616,14]
[377608745,1754453434614,-400.0,0.00035616,14]
[377608746,1754453434623,-400.0,0.00035616,14]
[377608747,1754453434631,-400.0,0.00035616,14]
[377608748,1754453434641,-151.0,0.00035616,7]
[377608749,1754453434649,-674.48,0.00035616,14]
[377608750,1754453434659,-400.0,0.00035616,14]
[377608751,1754453434667,-1192.83,0.00035616,14]
[377608752,1754453434676,-400.0,0.00035616,14]
[377608753,1754453434686,-1353.6,0.00035616,14]
[377608754,1754453434695,-1002.98,0.00035616,14]
[377608755,1754453434705,-400.0,0.00035616,14]
[377608756,1754453434714,-400.0,0.00035616,14]
[377608757,1754453434723,-400.0,0.00035616,14]
[377608758,1754453434733,-400.0,0.00035616,14]
[377608759,1754453434742,-400.0,0.00035616,14]
[377608760,1754453434751,-606.45,0.00035616,14]
[377608761,1754453434759,-400.0,0.00035616,14]
[377608762,1754453434769,-686.51,0.00035616,14]
[377608763,1754453434778,-527.69,0.00035616,14]
[377608764,1754453434787,-789.02,0.00035616,14]
[377608765,1754453434796,-500.0,0.00035616,2]
[377608766,1754453434805,-500.0,0.00035616,2]
[377608767,1754453434814,-500.0,0.00035616,2]
[377608768,1754453434823,-400.0,0.00035616,14]
[377608769,1754453434834,-151.0,0.00035616,7]
[377608770,1754453434843,-400.0,0.00035616,14]
[377608771,1754453434853,-699.49,0.00035616,14]
[377608772,1754453434863,-400.0,0.00035616,14]
[377608773,1754453434872,-400.0,0.00035616,14]
[377608774,1754453434883,-453.87,0.00035616,14]
[377608775,1754453434893,-288.13051566,0.00035616,14]
[377608776,1754453434903,-1546.64,0.00035616,14]
[377608777,1754453434912,-713.54,0.00035616,14]
[377608778,1754453434921,-400.0,0.00035616,14]
[377608779,1754453434932,-400.0,0.00035616,14]
[377608780,1754453434941,-400.0,0.00035616,14]
[377608781,1754453434950,-2138.86,0.00035616,14]
[377608782,1754453434960,-400.0,0.00035616,14]
[377608783,1754453434971,-400.0,0.00035616,14]
[377608784,1754453434981,-334.79011894,0.00035616,14]
[377608785,1754453434991,-1606.58,0.00035616,14]
[377608786,1754453435001,-1285.27,0.00035616,14]
[377608787,1754453435011,-400.0,0.00035616,14]
[377608788,1754453435021,-443.89,0.00035616,14]
[377608789,1754453435031,-400.0,0.00035616,14]
[377608790,1754453435041,-1475.04,0.00035616,14]
[377608791,1754453435050,-1757.95,0.00035616,14]
[377608792,1754453435061,-400.0,0.00035616,14]
[377608793,1754453435070,-500.0,0.00035616,14]
[377608794,1754453435080,-500.0,0.00035616,14]
[377608795,1754453435090,-500.0,0.00035616,14]
[377608796,1754453435099,-500.0,0.00035616,14]
[377608797,1754453435108,-400.0,0.00035616,14]
[377608798,1754453435118,-500.0,0.00035616,14]
[377608799,1754453435128,-500.0,0.00035616,14]
[377608800,1754453435137,-500.0,0.00035616,14]
[377608801,1754453435146,-500.0,0.00035616,14]
[377608802,1754453435154,-500.0,0.00035616,14]
[377608803,1754453435163,-500.0,0.00035616,14]
[377608804,1754453435172,-500.0,0.00035616,14]
[377608805,1754453435181,-1503.34,0.00035616,14]
[377608806,1754453435191,-500.0,0.00035616,14]
[377608807,1754453435200,-500.0,0.00035616,14]
[377608808,1754453435209,-1057.14,0.00035616,14]
[377608809,1754453435218,-500.0,0.00035616,14]
[377608810,1754453435228,-500.0,0.00035616,14]
[377608811,1754453435237,-500.0,0.00035616,14]
[377608812,1754453435246,-500.0,0.00035616,14]
[377608813,1754453435259,-500.0,0.00035616,14]
[377608814,1754453435269,-500.0,0.00035616,14]
[377608815,1754453435278,-500.0,0.00035616,14]
[377608816,1754453435288,-500.0,0.00035616,14]
[377608817,1754453435298,-500.0,0.00035616,14]
[377608818,1754453435309,-500.0,0.00035616,14]
[377608819,1754453435318,-500.0,0.00035616,14]
[377608820,1754453435329,-275.51947887,0.00035616,14]
[377608821,1754453435338,-1500.91,0.00035616,14]
[377608822,1754453435347,-500.0,0.00035616,2]
[377608823,1754453435356,-835.57,0.00035616,14]
[377608824,1754453435366,-500.0,0.00035616,2]
[377608825,1754453435376,-500.0,0.00035616,2]
[377608826,1754453435386,-500.0,0.00035616,2]
[377608827,1754453435397,-500.0,0.00035616,2]
[377608828,1754453435407,-500.0,0.00035616,2]
[377608829,1754453435418,-500.0,0.00035616,2]
[377608830,1754453435427,-500.0,0.00035616,2]
[377608831,1754453435437,-500.0,0.00035616,2]
[377608832,1754453435447,-500.0,0.00035616,2]
[377608833,1754453435456,-300.0,0.00035616,14]
[377608834,1754453435466,-500.0,0.00035616,2]
[377608835,1754453435476,-400.0,0.00035616,14]
[377608836,1754453435485,-500.0,0.00035616,2]
[377608837,1754453435494,-500.0,0.00035616,2]
[377608838,1754453435503,-500.0,0.00035616,2]
[377608839,1754453435512,-500.0,0.00035616,2]
[377608840,1754453435520,-500.0,0.00035616,2]
[377608841,1754453435530,-500.0,0.00035616,2]
[377608842,1754453435539,-526.91901068,0.00035616,2]
[377608843,1754453435548,-401.37114177,0.00035616,14]
[377608844,1754453435558,-843.28,0.00035616,14]
[377608845,1754453435567,-843.28,0.00035616,14]
[377608846,1754453435577,-843.28,0.00035616,14]
[377608847,1754453435587,-843.28,0.00035616,14]
[377608848,1754453435596,-843.28,0.00035616,14]
[377608849,1754453435606,-400.0,0.00035616,14]
[377608850,1754453435615,-843.28,0.00035616,14]
[377608851,1754453435624,-400.0,0.00035616,14]
[377608852,1754453435633,-843.28,0.00035616,14]
[377608853,1754453435642,-843.28,0.00035616,14]
[377608854,1754453435651,-843.28,0.00035616,14]
[377608855,1754453435660,-400.0,0.00035616,14]
[377608856,1754453435669,-772.9,0.00035616,14]
[377608857,1754453435680,-843.28,0.00035616,14]
[377608858,1754453435690,-843.28,0.00035616,14]
[377608859,1754453435700,-843.28,0.00035616,14]
[377608860,1754453435713,-843.28,0.00035616,14]
[377608861,1754453435723,-843.28,0.00035616,14]
[377608862,1754453435732,-843.28,0.00035616,14]
[377608863,1754453435742,-843.28,0.00035616,14]
[377608864,1754453435753,-843.28,0.00035616,14]
[377608865,1754453435765,-843.28,0.00035616,14]
[377608866,1754453435775,-843.28,0.00035616,14]
[377608867,1754453435785,-843.28,0.00035616,14]
[377608868,1754453435796,-902.95,0.00035616,14]
[377608869,1754453435807,-843.28,0.00035616,14]
[377608870,1754453435818,-843.28,0.00035616,14]
[377608871,1754453435827,-843.28,0.00035616,14]
[377608872,1754453435836,-843.34,0.00035616,14]
[377608873,1754453435846,-1093.83,0.00035616,14]
[377608874,1754453435855,-782.19,0.00035616,14]
[377608875,1754453435864,-837.69,0.00035616,14]
[377608876,1754453435874,-863.26,0.00035616,14]
[377608877,1754453435883,-400.0,0.00035616,14]
[377608878,1754453435892,-400.0,0.00035616,14]
[377608879,1754453435901,-400.0,0.00035616,14]
[377608880,1754453435910,-409.32,0.00035616,14]
[377608881,1754453435919,-534.68,0.00035616,14]
[377608882,1754453435928,-400.0,0.00035616,14]
[377608883,1754453435937,-400.0,0.00035616,14]
[377608884,1754453435946,-400.0,0.00035616,14]
[377608885,1754453435955,-1554.51,0.00035616,14]
[377608886,1754453435964,-400.0,0.00035616,14]
[377608887,1754453435973,-400.0,0.00035616,14]
[377608888,1754453435982,-786.32,0.00035616,14]
[377608889,1754453435991,-400.0,0.00035616,14]
[377608890,1754453436000,-802.46,0.00035616,14]
[377608891,1754453436010,-400.0,0.00035616,14]
[377608892,1754453436019,-1573.33,0.00035616,14]
[377608893,1754453436027,-400.0,0.00035616,14]
[377608894,1754453436037,-400.0,0.00035616,14]
[377608895,1754453436046,-795.45,0.00035616,14]
[377608896,1754453436055,-400.0,0.00035616,14]
[377608897,1754453436064,-400.0,0.00035616,14]
[377608898,1754453436073,-400.0,0.00035616,14]
[377608899,1754453436083,-400.0,0.00035616,14]
[377608900,1754453436092,-400.0,0.00035616,14]
[377608901,1754453436101,-400.0,0.00035616,14]
[377608902,1754453436110,-505.68,0.00035616,14]
[377608903,1754453436119,-505.68,0.00035616,14]
[377608904,1754453436128,-505.68,0.00035616,14]
[377608905,1754453436137,-505.68,0.00035616,14]
[377608906,1754453436146,-626.97,0.00035616,14]
[377608907,1754453436155,-400.0,0.00035616,14]
[377608908,1754453436164,-505.68,0.00035616,14]
[377608909,1754453436174,-505.68,0.00035616,14]
[377608910,1754453436183,-505.68,0.00035616,14]
[377608911,1754453436192,-400.0,0.00035616,14]
[377608912,1754453436201,-505.68,0.00035616,14]
[377608913,1754453436210,-505.68,0.00035616,14]
[377608914,1754453436219,-505.68,0.00035616,14]
[377608915,1754453436228,-505.68,0.00035616,14]
[377608916,1754453436237,-400.0,0.00035616,14]
[377608917,1754453436246,-505.68,0.00035616,14]
[377608918,1754453436259,-505.68,0.00035616,14]
[377608919,1754453436267,-505.68,0.00035616,14]
[377608920,1754453436277,-505.68,0.00035616,14]
[377608921,1754453436286,-400.0,0.00035616,14]
[377608922,1754453436296,-505.68,0.00035616,14]
[377608923,1754453436305,-505.68,0.00035616,14]
[377608924,1754453436314,-481.3,0.00035616,14]
[377608925,1754453436323,-505.68,0.00035616,14]
[377608926,1754453436335,-505.68,0.00035616,14]
[377608927,1754453436344,-505.68,0.00035616,14]
[377608928,1754453436353,-505.68,0.00035616,14]
[377608929,1754453436362,-505.68,0.00035616,14]
[377608930,1754453436371,-505.68,0.00035616,14]
[377608931,1754453436380,-505.87,0.00035616,14]
[377608932,1754453436392,-544.91,0.00035616,14]
[377608933,1754453436408,-4550.74,0.00035616,14]
[377608934,1754453436426,-400.0,0.00035616,14]
[377608935,1754453436436,-400.0,0.00035616,14]
[377608936,1754453436445,-442.94,0.00035616,14]
[377608937,1754453436454,-400.0,0.00035616,14]
[377608938,1754453436463,-679.52,0.00035616,14]
[377608939,1754453436473,-725.52,0.00035616,14]
[377608940,1754453436483,-400.0,0.00035616,14]
[377608941,1754453436491,-400.0,0.00035616,14]
[377608942,1754453436500,-497.49,0.00035616,14]
[377608943,1754453436509,-400.0,0.00035616,14]
[377608944,1754453436518,-400.0,0.00035616,14]
[377608945,1754453436527,-400.0,0.00035616,14]
[377608946,1754453436536,-828.65,0.00035616,14]
[377608947,1754453436545,-435.08,0.00035616,14]
[377608948,1754453436554,-1197.18,0.00035616,14]
[377608949,1754453436563,-400.0,0.00035616,5]
[377608950,1754453436572,-403.96572038,0.00035616,14]
[377608951,1754453436582,-411.76480951,0.00035616,14]
[377608952,1754453436590,-400.45455091,0.00035616,14]
[377608953,1754453436599,-400.0,0.00035616,14]
[377608954,1754453436608,-651.48,0.00035616,14]
[377608955,1754453436617,-670.55,0.00035616,14]
[377608956,1754453436626,-404.38465231,0.00035616,14]
[377608957,1754453436635,-400.0,0.00035616,14]
[377608958,1754453436644,-741.33,0.00035616,14]
[377608959,1754453436653,-400.0,0.00035616,14]
[377608960,1754453436663,-902.77,0.00035616,14]
[377608961,1754453436671,-400.0,0.00035616,14]
[377608962,1754453436680,-1869.52,0.00035616,14]
[377608963,1754453436689,-400.0,0.00035616,14]
[377608964,1754453436698,-400.0,0.00035616,14]
[377608965,1754453436708,-1561.04,0.00035616,14]
[377608966,1754453436717,-400.0,0.00035616,14]
[377608967,1754453436726,-400.0,0.00035616,14]
[377608968,1754453436735,-502.95,0.00035616,14]
[377608969,1754453436744,-1774.44,0.00035616,14]
[377608970,1754453436754,-415.56,0.00035616,14]
[377608971,1754453436764,-400.0,0.00035616,14]
[377608972,1754453436773,-400.0,0.00035616,14]
[377608973,1754453436784,-2755.56,0.00035616,14]
[377608974,1754453436793,-951.85,0.00035616,14]
[377608975,1754453436803,-406.04,0.00035616,14]
[377608976,1754453436812,-951.18,0.00035616,14]
[377608977,1754453436820,-626.47,0.00035616,14]
[377608978,1754453436830,-530.07,0.00035616,14]
[377608979,1754453436839,-400.0,0.00035616,14]
[377608980,1754453436849,-400.0,0.00035616,14]
[377608981,1754453436859,-400.0,0.00035616,14]
[377608982,1754453436867,-400.0,0.00035616,14]
[377608983,1754453436876,-485.76,0.00035616,14]
[377608984,1754453436886,-400.0,0.00035616,14]
[377608985,1754453436895,-714.4,0.00035616,14]
[377608986,1754453436905,-535.15,0.00035616,14]
[377608987,1754453436914,-965.64,0.00035616,14]
[377608988,1754453436924,-400.0,0.00035616,2]
[377608989,1754453436933,-1729.12,0.00035616,14]
[377608990,1754453436943,-647.21,0.00035616,14]
[377608991,1754453436952,-400.0,0.00035616,14]
[377608992,1754453436962,-1812.51,0.00035616,14]
[377608993,1754453436971,-400.0,0.00035616,14]
[377608994,1754453436981,-400.0,0.00035616,14]
[377608995,1754453436991,-400.0,0.00035616,14]
[377608996,1754453437000,-400.0,0.00035616,14]
[377608997,1754453437009,-400.0,0.00035616,14]
[377608998,1754453437018,-475.73,0.00035616,14]
[377608999,1754453437027,-1571.19,0.00035616,14]
[377609000,1754453437036,-400.0,0.00035616,14]
[377609001,1754453437046,-400.0,0.00035616,14]
[377609002,1754453437055,-492.83,0.00035616,14]
[377609003,1754453437064,-467.01,0.00035616,14]
[377609004,1754453437074,-400.0,0.00035616,14]
[377609005,1754453437085,-400.0,0.00035616,14]
[377609006,1754453437094,-400.0,0.00035616,14]